[Event "ETCC Open 2023"]
[Site "Budva"]
[Date "2023.11.12"]
[Round "2.3"]
[White "Donchenko, Alexander"]
[Black "Banusz, Tamas"]
[Result "1/2-1/2"]
[ECO "D94"]
[WhiteElo "2664"]
[BlackElo "2609"]
[Annotator "TA"]
[PlyCount "131"]
[EventDate "2023.11.10"]
[EventType "team-tourn"]
[EventCountry "MNE"]
[SourceTitle "playchess.com"]
[Source "ChessBase"]
[SourceQuality "1"]
[WhiteTeam "Germany"]
[BlackTeam "Hungary"]
[WhiteTeamCountry "GER"]
[BlackTeamCountry "HUN"]
[TimeControl "40/5400+30:1800+30"]

{[%evp 15,131,12,37,27,47,43,53,31,40,16,24,18,22,0,0,0,0,0,0,0,11,10,11,0,16,18,10,14,14,13,12,7,14,0,0,0,0,0,0,0,0,0,0,0,0,0,0,0,0,0,0,0,0,0,0,0,0,0,0,0,0,0,0,0,20,20,20,20,20,20,20,20,20,20,20,0,20,20,21,21,21,20,21,21,26,21,21,21,21,21,21,21,21,21,21,20,21,21,21,0,21,21,21,21,21,20,20,20,20,20,20,20,20,20,20,20,20,20]} 1. d4 {[%emt 0:00:03]} d5 {[%emt 0:00:10]} 2. c4 {[%emt 0:00:05]} c6 {[%emt 0:00:04]} 3. Nc3 {[%emt 0:00:14]} Nf6 {[%emt 0:00:09]} 4. e3 {[%emt 0:00:12]} g6 {[%emt 0:00:51]} 5. Nf3 {[%emt 0:04:24]} Bg7 {[%emt 0:00:13]} 6. Be2 {[%emt 0:03:29]} O-O {[%emt 0:00:13]} 7. O-O {[%emt 0:00:21]} Be6 {[%emt 0:00:09] 7...a6 gains popularity.} 8. cxd5 {[%emt 0:20:39]} cxd5 {[%emt 0:00:09]} 9. Ne5 {[%emt 0:00:27] D94: Grünfeld: 4 Nf3 Bg7 5 e3.} Nc6 {[%emt 0:03:28]} 10. Nxc6 {[%emt 0:01:17]} bxc6 {[%emt 0:00:03]} 11. Bd2 {[%emt 0:00:40] White is slightly better.} Rb8 {[%emt 0:03:54]} 12. Na4 {[%emt 0:04:22]} Ne4 {[%emt 0:01:14][%cal Oc6c5] [#]} 13. Rc1 $146 {[%emt 0:09:12]} ({Predecessor:} 13. Bd3 Nxd2 14. Qxd2 Bd7 15. f4 f6 16. f5 gxf5 17. Bxf5 e6 18. Bh3 f5 19. Rf3 {½-½ Gonda,L (2552)-Banusz,T (2598) HUN-ch 63rd Gyula 2013 (7)}) 13... Bd7 {[%emt 0:21:05]} 14. Bf3 {[%emt 0:02:51]} Nxd2 {[%emt 0:01:58]} 15. Qxd2 {[%emt 0:00:41]} e5 {[%emt 0:00:22]} 16. dxe5 {[%emt 0:01:24]} Bxe5 {[%emt 0:00:27] [#] Strongly threatening ...Qh4.} 17. b3 {[%emt 0:00:20]} Rc8 {[%emt 0:09:39]} 18. Nc5 {[%emt 0:02:09][%cal Ba4c5,Bc5b3,Bb3d4][%mdl 32]} Bf5 {[%emt 0:01:11]} 19. Rfd1 {[%emt 0:05:19]} Qe7 {[%emt 0:07:17]} 20. b4 {[%emt 0:03:51]} Qf6 {[%emt 0:05:28]} 21. Nb3 {[%emt 0:03:18]} h5 {[%emt 0:05:10]} 22. Nd4 {[%emt 0:02:45]} Bd7 {[%emt 0:00:32]} 23. Be2 {[%emt 0:00:44]} Rb8 {[%emt 0:03:03]} 24. a4 {[%emt 0:06:39]} (24. f4 {simplifies} Bxd4 25. Qxd4 Qxd4 26. Rxd4 a5 27. bxa5 Rb2 28. Bd3) 24... Rfd8 {[%emt 0:12:59]} 25. g3 {[%emt 0:11:50]} h4 {[%emt 0:04:06]} 26. b5 {[%emt 0:00:57]} cxb5 {[%emt 0:02:43]} 27. axb5 {[%emt 0:00:54]} hxg3 {[%emt 0:01:10]} 28. hxg3 {[%emt 0:00:04]} Bxd4 {[%emt 0:00:22]} 29. Qxd4 {[%emt 0:00:23]} Qxd4 {[%emt 0:00:06]} 30. Rxd4 {[%emt 0:00:06]} Bxb5 {[%emt 0:00:14]} 31. Bxb5 {[%emt 0:01:22]} Rxb5 $11 {[%emt 0:00:08][%mdl 4096] Endgame KRR-KRR} 32. Rc7 {[%emt 0:00:06]} a5 {[%emt 0:01:42]} 33. Rf4 {[%emt 0:01:24]} f5 {[%emt 0:02:19]} 34. Rh4 {[%emt 0:01:44]} d4 {[%emt 0:06:49]} 35. exd4 {[%emt 0:00:39]} a4 {[%emt 0:00:55]} 36. Ra7 {[%emt 0:03:49]} Rb4 {[%emt 0:01:38]} 37. Rhh7 {[%emt 0:01:10]} Rd6 {[%emt 0:01:27]} 38. Rhe7 {[%emt 0:03:06][%cal Re7e8] [#]} Kf8 {[%emt 0:00:19] Repels Re8+} 39. d5 {[%emt 0:01:41]} Rd4 {[%emt 0:00:52]} 40. Rf7+ {[%emt 0:01:38]} Kg8 $1 {[%emt 0:00:51]} 41. Rg7+ {[%emt 0:08:21]} Kf8 {[%emt 0:02:02]} 42. Rh7 {[%emt 0:01:17][%cal Rh7h8]} Kg8 {[%emt 0:00:28] Against Rh8+} 43. Rag7+ {[%emt 0:00:13]} Kf8 {[%emt 0:00:08]} 44. Rf7+ {[%emt 0:00:06]} Kg8 $1 {[%emt 0:01:02]} 45. Rhg7+ {[%emt 0:00:07]} Kh8 {[%emt 0:00:06]} 46. Ra7 {[%emt 0:00:45]} R6xd5 {[%emt 0:12:57]} 47. Rxg6 {[%emt 0:06:16]} Rd7 {[%emt 0:00:22]} 48. Ra5 {[%emt 0:01:23]} R7d5 {[%emt 0:05:40]} 49. Raa6 {[%emt 0:01:31]} Kh7 {[%emt 0:00:29]} 50. Rge6 {[%emt 0:04:01]} Rd7 {[%emt 0:02:50] Prevents Re7+. The position is equal.} 51. Kg2 {[%emt 0:03:08]} Rf7 {[%emt 0:02:55]} 52. Rh6+ {[%emt 0:06:02]} Kg8 {[%emt 0:00:18]} 53. Ra8+ {[%emt 0:02:08]} Kg7 {[%emt 0:00:31]} 54. Rha6 {[%emt 0:00:12]} Rf6 {[%emt 0:02:45]} 55. R6a7+ {[%emt 0:00:35]} (55. Rxa4 {simplifies} Rxa4 56. Rxa4 Kg6 57. Kh3) 55... Rf7 {[%emt 0:00:29]} 56. Ra5 {[%emt 0:00:34]} (56. Rxa4 {simplifies} Rxa4 57. Rxa4 Rb7 58. Ra5) 56... Rf6 {[%emt 0:01:12]} 57. R5a7+ {[%emt 0:03:17]} (57. Rxa4 {simplifies} Rxa4 58. Rxa4 Kg6 59. Kh3) 57... Rf7 {[%emt 0:00:33]} 58. Rxa4 {[%emt 0:00:53]} Rxa4 {[%emt 0:00:06]} 59. Rxa4 {[%emt 0:00:04] KR-KR} Rf6 {[%emt 0:04:46]} 60. Kf3 {[%emt 0:00:04]} Rb6 {[%emt 0:00:42]} 61. Ra8 {[%emt 0:01:50]} Kf6 {[%emt 0:00:15]} 62. Rf8+ {[%emt 0:00:05]} Kg5 {[%emt 0:00:20]} 63. Kg2 {[%emt 0:00:42]} Rb2 {[%emt 0:00:31]} 64. Ra8 {[%emt 0:00:14]} Rc2 {[%emt 0:00:16]} 65. Kf1 {[%emt 0:00:43]} Rb2 {[%emt 0:00:31]} 66. Ra4 {[%emt 0:00:52] Weighted Error Value: White=0.03 (flawless) /Black=0.02 (flawless)} 1/2-1/2

[Event "ETCC Open 2023"]
[Site "Budva"]
[Date "2023.11.12"]
[Round "2.4"]
[White "Balog, Imre"]
[Black "Kollars, Dmitrij"]
[Result "1/2-1/2"]
[ECO "D38"]
[WhiteElo "2617"]
[BlackElo "2642"]
[Annotator "TA"]
[PlyCount "124"]
[EventDate "2023.11.10"]
[EventType "team-tourn"]
[EventCountry "MNE"]
[SourceTitle "playchess.com"]
[Source "ChessBase"]
[SourceQuality "1"]
[WhiteTeam "Hungary"]
[BlackTeam "Germany"]
[WhiteTeamCountry "HUN"]
[BlackTeamCountry "GER"]
[TimeControl "40/5400+30:1800+30"]

{[%evp 12,124,25,10,16,10,12,16,2,6,2,9,16,12,7,0,0,6,16,8,30,27,22,20,13,8,6,5,22,0,0,0,12,0,0,0,7,0,6,5,8,0,8,0,8,0,0,0,8,8,8,8,23,10,20,15,68,79,72,30,51,71,56,40,114,47,52,51,222,222,205,204,197,112,118,115,110,110,118,106,90,89,87,79,99,100,99,81,73,0,0,0,0,0,0,0,35,0,0,0,0,0,0,0,0,0,0,0,0,0,0,0,0,0,663]} 1. d4 {[%emt 0:00:10]} d5 {[%emt 0:00:33]} 2. c4 {[%emt 0:00:38]} e6 {[%emt 0:00:18]} 3. Nf3 {[%emt 0:01:15]} Nf6 {[%emt 0:00:05]} 4. Nc3 {[%emt 0:01:02]} Bb4 {[%emt 0:00:38]} 5. cxd5 {[%emt 0:02:22]} exd5 {[%emt 0:01:10]} 6. Bg5 {[%emt 0:00:29]} h6 {[%emt 0:01:11]} 7. Bh4 {[%emt 0:00:59]} O-O {[%emt 0:00:26] D38: Queen's Gambit Declined: Ragozin Defence (4 Nf3 Bb4).} 8. e3 {[%emt 0:00:15]} Bf5 {[%emt 0:00:29]} 9. Qb3 {[%emt 0:03:54]} Bxc3+ {[%emt 0:00:43]} 10. bxc3 {[%emt 0:02:15][%cal Oh4f6]} Nbd7 {[%emt 0:00:53]} 11. Be2 $1 {[%emt 0:01:40][%cal Oe1g1]} c5 {[%emt 0:01:06]} 12. dxc5 {[%emt 0:00:07]} Nxc5 {[%emt 0:02:09]} 13. Qb4 {[%emt 0:00:09]} Rc8 {[%emt 0:00:53]} 14. O-O {[%emt 0:00:08]} g5 {[%emt 0:02:04]} 15. Bg3 {[%emt 0:00:27][%cal Bh4g3,Bg3e5,Be5d4][%mdl 32]} Nfe4 {[%emt 0:00:46]} 16. Be5 {[%emt 0:02:58]} Re8 {[%emt 0:11:41]} 17. Bd4 $1 {[%emt 0:03:06]} Qe7 {[%emt 0:11:26]} 18. Rac1 {[%emt 0:04:58]} Ne6 {[%emt 0:21:25] [#]} 19. Qb2 $146 {[%emt 0:04:03]} ({Predecessor:} 19. Qa5 Nxd4 20. Nxd4 Be6 21. Qxa7 Nxc3 22. Bd3 Ra8 23. Qb6 Rec8 24. Rc2 Nxa2 25. Rxc8+ Rxc8 {1-0 Petrosyan,M (2638)-Hayrapetyan,H (2484) Jermuk Asrian Memorial 13th 2022 (6)}) 19... b6 {[%emt 0:06:38]} 20. Rfd1 {[%emt 0:02:39]} Nxd4 {[%emt 0:03:01]} 21. Nxd4 {[%emt 0:02:48]} Bd7 {[%emt 0:01:19]} 22. Ba6 {[%emt 0:06:31]} (22. c4 {looks sharper.} dxc4 23. Bxc4 Qe5 24. Qe2) 22... Rc7 {[%emt 0:01:53][%cal Ob6b5]} 23. c4 {[%emt 0:05:15]} dxc4 {[%emt 0:01:36]} 24. Rxc4 {[%emt 0:06:58]} Rxc4 {[%emt 0:02:35]} 25. Bxc4 {[%emt 0:00:11]} Rc8 {[%emt 0:01:04][%cal Be8c8,Bc8c7,Bc7d7][%mdl 32]} 26. Bd3 {[%emt 0:02:41]} Nc5 {[%emt 0:02:23]} 27. Bf5 {[%emt 0:12:27]} Rc7 {[%emt 0:03:58]} 28. Bb1 {[%emt 0:13:50]} Qf6 {[%emt 0:01:43]} 29. Qd2 {[%emt 0:00:14]} Be6 {[%emt 0:07:01]} 30. h3 {[%emt 0:03:20]} Rd7 {[%emt 0:01:54]} 31. Qc2 {[%emt 0:02:12]} Qg7 {[%emt 0:02:58] Inhibits Qh7+.} 32. Rf1 {[%emt 0:00:21][%cal Bd1f1,Bf1c1,Bc1c4][%mdl 32]} (32. g4 {is interesting.} Rd6 33. Nc6 Rxd1+ 34. Qxd1 Qb2 35. Nxa7 Bxa2 36. Qd8+) 32... Bd5 {[%emt 0:03:03]} (32... Qf6 {with more complications.} 33. Rc1 Rd6 34. Rd1 Kf8) 33. Qe2 {[%emt 0:01:20]} Be4 {[%emt 0:03:49]} (33... Qf6 $11) 34. Bxe4 $14 {[%emt 0:01:17]} Nxe4 {[%emt 0:00:02]} 35. Qg4 {[%emt 0:00:24]} Nf6 {[%emt 0:00:37]} 36. Qf3 {[%emt 0:01:03] Threatens to win with Rc1.} Qg6 {[%emt 0:02:11]} 37. Rc1 {[%emt 0:00:47]} Ne4 {[%emt 0:01:00]} (37... g4 $1 $14 38. hxg4 Nxg4) 38. Nf5 {[%emt 0:03:49]} ({White should play} 38. Rc6 $16 Rd6 39. Rxd6 Nxd6 40. Qa8+ Kg7 41. Qxa7) 38... Nc5 {[%emt 0:00:41]} 39. h4 {[%emt 0:06:03]} h5 $2 {[%emt 0:01:44]} (39... Qf6 $14) 40. hxg5 $18 {[%emt 0:01:15]} Qxg5 {[%emt 0:00:22]} 41. Rc4 {[%emt 0:30:25]} Ne6 {[%emt 0:03:05] [#]} 42. Ng3 {[%emt 0:00:00]} (42. g3 $1 $18) 42... Qd5 $16 {[%emt 0:05:34]} 43. Rc8+ {[%emt 0:00:00]} Kh7 {[%emt 0:01:07]} 44. Qf6 {[%emt 0:00:00][%csl Gf6][%cal Rc8h8]} ({But not} 44. Qxh5+ $6 Qxh5 45. Nxh5 Rd1+ 46. Kh2 Rd2 $11) ({Reject} 44. Nxh5 $6 Qxf3 45. gxf3 Rd2 $11) 44... Ng7 {[%emt 0:00:26]} 45. Rc6 {[%emt 0:00:00] White is much more active.} Ne6 {[%emt 0:02:02] [#]} 46. Rc1 {[%emt 0:00:00] Nf5 is the strong threat.} Ng7 {[%emt 0:01:25] Repels Nf5} 47. Qf4 {[%emt 0:00:00]} Re7 {[%emt 0:11:10] Prevents Ne4} 48. Rc8 {[%emt 0:00:00]} Qd1+ {[%emt 0:00:59]} 49. Kh2 {[%emt 0:00:00]} Qg4 {[%emt 0:00:07] Inhibits Nf5.} 50. Qb8 {[%emt 0:00:00]} (50. Qf6 $16) 50... Rd7 $11 {[%emt 0:01:26]} 51. Rh8+ {[%emt 0:00:40]} Kg6 {[%emt 0:00:02]} 52. Qg8 $2 {[%emt 0:00:05][%mdl 8192]} (52. Nf1 $11) 52... Qh4+ $18 {[%emt 0:02:04]} 53. Kg1 {[%emt 0:00:50]} Rd1+ {[%emt 0:01:02]} 54. Nf1 {[%emt 0:00:05] aiming for Qh7+.} Qc4 {[%emt 0:02:16][%csl LRa2,LRf1] The position is equal.} 55. Qh7+ {[%emt 0:00:11]} Kf6 {[%emt 0:00:01]} 56. Qh6+ {[%emt 0:00:00]} Ke7 {[%emt 0:01:12]} (56... Kf5 $2 57. e4+ Ke5 58. Qxg7+ $18) 57. Qg5+ {[%emt 0:00:38]} Ke6 {[%emt 0:00:38]} 58. Kh2 $1 {[%emt 0:00:16] Dancing on a razor blade.} ({Not} 58. Rh6+ $2 Kd7 59. Kh2 Rxf1 $17) 58... Rxf1 {[%emt 0:01:07]} (58... Qxf1 59. Rh6+ Kd7 60. Qf4 $16) 59. f4 {[%emt 0:00:03]} Qc3 {[%emt 0:01:43] ...Qa1 would be deadly.} 60. Rh6+ {[%emt 0:00:15]} f6 {[%emt 0:01:09][%cal Oc3a1] White must now prevent ...Qa1!} 61. Qxg7 {[%emt 0:00:06] And now Qg8+ would win.} Rh1+ $1 {[%emt 0:00:18][%mdl 64] Decoy} 62. Kxh1 {[%emt 0:00:19]} Qe1+ {[%emt 0:00:05][%mdl 32768] Weighted Error Value: White=0.08 (flawless) /Black=0.10 (very precise) . An unexpected result.} 1/2-1/2

[Event "ETCC Open 2023"]
[Site "Budva"]
[Date "2023.11.12"]
[Round "2.5"]
[White "Pasko, Llambi"]
[Black "Kadric, Denis"]
[Result "1/2-1/2"]
[ECO "E94"]
[WhiteElo "2395"]
[BlackElo "2584"]
[Annotator "TA"]
[PlyCount "75"]
[EventDate "2023.11.10"]
[EventType "team-tourn"]
[EventCountry "MNE"]
[SourceTitle "playchess.com"]
[Source "ChessBase"]
[SourceQuality "1"]
[WhiteTeam "Albania"]
[BlackTeam "Montenegro"]
[WhiteTeamCountry "ALB"]
[BlackTeamCountry "MNE"]
[TimeControl "40/5400+30:1800+30"]

{[%evp 22,75,17,6,40,21,49,10,18,5,19,15,17,13,35,27,39,-2,-6,-15,-4,-6,0,-32,0,0,0,0,0,0,0,-52,-52,-98,-91,-197,-7,-6,0,0,0,-135,-140,-197,-56,-81,-58,-70,0,0,0,-72,0,0,0,-47]} 1. d4 {[%emt 0:00:03]} Nf6 {[%emt 0:00:08]} 2. c4 {[%emt 0:00:10]} d6 {[%emt 0:00:17]} 3. Nc3 {[%emt 0:00:17]} g6 {[%emt 0:00:09]} 4. e4 {[%emt 0:00:41]} Bg7 {[%emt 0:00:05]} 5. Nf3 {[%emt 0:00:10]} O-O {[%emt 0:00:05]} 6. Be2 {[%emt 0:00:34]} Nbd7 {[%emt 0:00:15]} 7. O-O {[%emt 0:00:29]} e5 {[%emt 0:00:04]} 8. d5 {[%emt 0:00:16]} Nc5 {[%emt 0:00:26]} 9. Qc2 {[%emt 0:00:25]} a5 {[%emt 0:00:02]} 10. Bg5 {[%emt 0:00:09]} h6 {[%emt 0:00:23]} 11. Be3 {[%emt 0:00:05]} b6 {[%emt 0:00:03]} 12. Nd2 {[%emt 0:00:08]} h5 {[%emt 0:00:17] E94: King's Indian: Classical: 6 Be2 e5 7 0-0: Various Black 7th moves.} 13. f3 {[%emt 0:03:13]} Nh7 {[%emt 0:01:01]} 14. b3 {[%emt 0:03:46]} Bf6 {[%emt 0:01:31] [#]} 15. Nb5 $146 {[%emt 0:02:43]} ({Predecessor:} 15. a3 Bg5 16. Bxg5 Qxg5 17. Kh1 Na6 18. Rf2 h4 19. Nf1 f5 20. Qd2 Nc5 21. Bd1 fxe4 22. Nxe4 Nxe4 23. fxe4 Rxf2 24. Qxf2 {0-1 Citak,S (2281)-Tekeyev,Z (2397) Pozarevac Rudar 10th 2023 (3)}) 15... Bd7 {[%emt 0:02:18]} 16. a3 {[%emt 0:02:48]} Bg5 {[%emt 0:00:07]} 17. Qc3 {[%emt 0:01:47]} Bxb5 {[%emt 0:19:20]} 18. cxb5 {[%emt 0:00:10]} h4 {[%emt 0:00:02]} 19. Rfc1 {[%emt 0:11:17]} f5 {[%emt 0:32:29]} 20. exf5 {[%emt 0:10:54]} gxf5 {[%emt 0:01:21]} 21. b4 {[%emt 0:00:15]} Nd7 {[%emt 0:00:12][%cal Oh4h3]} 22. Nf1 {[%emt 0:10:34]} axb4 {[%emt 0:04:18]} (22... Bxe3+ {keeps more tension.} 23. Qxe3 h3 24. Qh6 hxg2 25. Ng3 Kh8) 23. axb4 {[%emt 0:03:30]} Rxa1 {[%emt 0:00:12]} 24. Rxa1 {[%emt 0:00:34]} h3 {[%emt 0:04:06]} 25. Bxg5 {[%emt 0:06:36]} Nxg5 {[%emt 0:02:59]} (25... Qxg5 26. g3 $14) 26. g3 {[%emt 0:08:50]} (26. Ra7 $11) 26... f4 $15 {[%emt 0:08:27]} 27. Ra7 {[%emt 0:01:24] [#]} (27. Nd2 $15) 27... e4 $1 $17 {[%emt 0:03:57] ...Qe8 would be deadly.} 28. fxe4 {[%emt 0:24:34]} (28. Rxc7 exf3 29. Bd3 f2+ 30. Kh1 (30. Kxf2 $2 fxg3+ 31. Kxg3 Rf3+ 32. Kg4 Nf6+ 33. Kxg5 Nxd5+ {[%mdl 64] Discovered Attack, Double Attack} 34. Kg4 Rf4+ 35. Kxh3 Nxc3 $19) 30... Qe8 $17) (28. gxf4 $17 exf3 29. Bxf3) 28... Qe7 $2 {[%emt 0:01:35]} (28... f3 $19 29. Bd3 f2+ 30. Kh1 Rf3) 29. gxf4 $11 {[%emt 0:05:41]} (29. Rxc7 Qxe4 30. Kf2 fxg3+ 31. Ke1 g2 32. Ng3 g1=Q+ 33. Kd2 Qf4+ 34. Kc2 Qgc1+ 35. Kb3 Qb1+ 36. Qb2 Qxb4+ 37. Kxb4 Qxb2+ 38. Ka4 Nc5+ 39. Rxc5 Ra8#) 29... Rxf4 {[%emt 0:01:33]} (29... Qxe4 {is more complex.} 30. Qg3 Qxf4 31. Rxc7 Ne5) 30. Ng3 $36 {[%emt 0:01:15][%mdl 2048] White has the initiative.} (30. Qxc7 Qg7 31. Ra8+ (31. Qxd7 $2 Nf3+ {[%mdl 64] Discovered Attack (Double check)} 32. Kh1 Qg2#) 31... Kh7 $19) 30... Nxe4 {[%emt 0:07:56]} 31. Qe3 {[%emt 0:01:10]} (31. Qxc7 Nxg3 32. Qc8+ Rf8) (31. Nxe4 $11 Qxe4 32. Ra8+ (32. Qxh3 $2 Qxe2 33. Qe6+ Qxe6 $19) (32. Qg3+ Kf8 $11) 32... Rf8 33. Rxf8+ Nxf8 34. Bf1) 31... Qg5 $17 {[%emt 0:03:14][%cal Of4f1] aiming for ...Rf1+!} 32. Ra8+ {[%emt 0:01:19] [#]} (32. Ra3 $17 {is a better defense.}) 32... Nf8 {[%emt 0:00:36] Excellent horsemanship.} (32... Kf7 $1 $19 {[%cal Of4f1] Hoping for ...Rf1+!} 33. Ra1 Ndf6) 33. Ra3 {[%emt 0:00:07]} Ng6 {[%emt 0:00:42] Strongly threatening ...Ne7.} 34. Bf1 {[%emt 0:01:02]} Qg4 {[%emt 0:05:56]} 35. Be2 {[%emt 0:00:20]} Qg5 {[%emt 0:00:40]} 36. Bf1 $1 {[%emt 0:00:09]} ({Much weaker is} 36. Bd3 Nxg3 37. hxg3 Qxd5 38. Qe8+ Nf8 $17) 36... Qg4 {[%emt 0:00:04]} 37. Be2 {[%emt 0:00:11]} Qg5 {[%emt 0:01:34] Threatens to win with ...Ne7.} 38. Bf1 $1 {[%emt 0:01:28] Weighted Error Value: White=0.25 (precise) /Black=0.31} ({Reject} 38. Bd3 Nxg3 {[%mdl 64] Discovered Attack} 39. hxg3 Qxd5 40. Qe8+ Nf8 $17) 1/2-1/2

[Event "ETCC Open 2023"]
[Site "Budva"]
[Date "2023.11.12"]
[Round "2.6"]
[White "Djukic, Nikola"]
[Black "Mehmeti, Dritan"]
[Result "1-0"]
[ECO "C10"]
[WhiteElo "2518"]
[BlackElo "2377"]
[Annotator "ChessBase"]
[PlyCount "33"]
[EventDate "2023.11.10"]
[EventType "team-tourn"]
[EventCountry "MNE"]
[SourceTitle "playchess.com"]
[Source "ChessBase"]
[SourceQuality "1"]
[WhiteTeam "Montenegro"]
[BlackTeam "Albania"]
[WhiteTeamCountry "MNE"]
[BlackTeamCountry "ALB"]
[TimeControl "40/5400+30:1800+30"]

1. e4 {[%emt 0:00:03]} e6 {[%emt 0:00:24]} 2. d4 {[%emt 0:00:07]} d5 {[%emt 0:00:10]} 3. Nc3 {[%emt 0:00:05]} dxe4 {[%emt 0:01:02]} 4. Nxe4 {[%emt 0:00:07]} Nd7 {[%emt 0:00:21]} 5. Nf3 {[%emt 0:04:39]} Ngf6 {[%emt 0:00:10]} 6. Nxf6+ {[%emt 0:00:09]} Nxf6 {[%emt 0:00:34]} 7. c3 {[%emt 0:00:07]} Bd6 {[%emt 0:05:51]} 8. Bd3 {[%emt 0:05:24]} O-O {[%emt 0:09:21]} 9. Bg5 {[%emt 0:08:35]} b6 {[%emt 0:06:39]} 10. Ne5 {[%emt 0:23:15]} Bb7 {[%emt 0:02:29]} 11. Qe2 {[%emt 0:07:12]} c5 {[%emt 0:08:11]} 12. Rd1 {[%emt 0:17:57]} cxd4 {[%emt 0:03:37]} 13. Bb1 {[%emt 0:00:33]} Ba6 {[%emt 0:28:39]} 14. Qxa6 {[%emt 0:03:37]} Bxe5 {[%emt 0:00:12]} 15. Qd3 {[%emt 0:09:14]} g6 {[%emt 0:06:35]} 16. Qf3 {[%emt 0:01:20]} Qd5 {[%emt 0:06:04]} 17. cxd4 {[%emt 0:01:51]} 1-0

[Event "ETCC Open 2023"]
[Site "Budva"]
[Date "2023.11.12"]
[Round "2.7"]
[White "Ashiku, Franc"]
[Black "Petrov, Nikita"]
[Result "0-1"]
[ECO "D13"]
[WhiteElo "2396"]
[BlackElo "2567"]
[Annotator "RC"]
[PlyCount "116"]
[EventDate "2023.11.10"]
[EventType "team-tourn"]
[EventCountry "MNE"]
[SourceTitle "playchess.com"]
[Source "ChessBase"]
[SourceQuality "1"]
[WhiteTeam "Albania"]
[BlackTeam "Montenegro"]
[WhiteTeamCountry "ALB"]
[BlackTeamCountry "MNE"]
[TimeControl "40/5400+30:1800+30"]

1. d4 {[%emt 0:00:06]} Nf6 {[%emt 0:00:25]} 2. c4 {[%emt 0:00:06]} c6 {[%emt 0:00:08]} 3. Nc3 {[%emt 0:00:26]} d5 {[%emt 0:00:07]} 4. cxd5 {[%emt 0:00:10]} cxd5 {[%emt 0:00:07]} 5. Bf4 {[%emt 0:00:10]} Nc6 {[%emt 0:01:19]} 6. Nf3 {[%emt 0:00:12]} Nh5 {[%emt 0:02:57]} 7. Bd2 {[%emt 0:03:46]} e6 {[%emt 0:00:26]} 8. e3 {[%emt 0:01:43]} Nf6 {[%emt 0:05:10]} 9. Ne5 {[%emt 0:02:46]} Nxe5 {[%emt 0:03:36]} 10. dxe5 {[%emt 0:00:05]} Nd7 {[%emt 0:00:06]} 11. f4 {[%emt 0:00:26]} Be7 {[%emt 0:03:35]} 12. Qc2 {[%emt 0:01:45]} a6 {[%emt 0:05:58]} 13. O-O-O {[%emt 0:03:10]} b5 {[%emt 0:05:38]} 14. Kb1 {[%emt 0:04:27]} b4 {[%emt 0:15:07]} 15. Ne2 {[%emt 0:10:24]} Qb6 {[%emt 0:08:54]} 16. Qa4 {[%emt 0:06:20]} O-O {[%emt 0:01:18]} 17. Nd4 {[%emt 0:04:54]} a5 {[%emt 0:06:29]} 18. Qc6 {[%emt 0:09:41]} Bc5 {[%emt 0:13:11]} 19. Rc1 {[%emt 0:06:06]} Qxc6 {[%emt 0:06:05]} 20. Nxc6 {[%emt 0:00:08]} Ba6 {[%emt 0:03:33]} 21. Rc2 {[%emt 0:08:20]} f6 {[%emt 0:03:20]} 22. f5 {[%emt 0:12:00]} Bxf1 {[%emt 0:01:55]} 23. Rxf1 {[%emt 0:00:41]} fxe5 {[%emt 0:00:25]} 24. Rfc1 {[%emt 0:01:34]} Rxf5 {[%emt 0:03:40]} 25. Rxc5 {[%emt 0:00:10]} Nxc5 {[%emt 0:00:02]} 26. Rxc5 {[%emt 0:04:31]} Rf2 {[%emt 0:00:06]} 27. Be1 {[%emt 0:03:22]} Rxg2 {[%emt 0:02:46]} 28. Bg3 {[%emt 0:00:45]} d4 {[%emt 0:03:36]} 29. exd4 {[%emt 0:08:05]} exd4 {[%emt 0:00:04]} 30. Nxd4 {[%emt 0:03:56]} a4 {[%emt 0:00:55]} 31. Rc2 {[%emt 0:01:34]} Rg1+ {[%emt 0:00:15]} 32. Rc1 {[%emt 0:00:04]} Rg2 {[%emt 0:00:07]} 33. Nf3 {[%emt 0:02:37]} Rd8 {[%emt 0:01:47]} 34. Rc2 {[%emt 0:01:59]} Rd1+ {[%emt 0:00:24]} 35. Rc1 {[%emt 0:00:01]} Rd8 {[%emt 0:01:17]} 36. Rc2 {[%emt 0:00:33]} Rd1+ {[%emt 0:01:07]} 37. Rc1 {[%emt 0:00:04]} Rxc1+ {[%emt 0:01:38]} 38. Kxc1 {[%emt 0:00:05]} a3 {[%emt 0:00:27]} 39. bxa3 {[%emt 0:01:05]} bxa3 {[%emt 0:00:03]} 40. Nd2 {[%emt 0:00:29]} g5 {[%emt 0:01:32]} 41. Bd6 {[%emt 0:17:56]} h5 {[%emt 0:07:47]} 42. h3 {[%emt 0:01:26]} h4 {[%emt 0:02:44]} 43. Bxa3 {[%emt 0:06:19]} Rg3 {[%emt 0:03:04]} 44. Bd6 {[%emt 0:01:04]} Rxh3 {[%emt 0:00:43]} 45. Ne4 {[%emt 0:01:25]} Rd3 {[%emt 0:06:09]} 46. Bh2 {[%emt 0:01:56]} Rf3 {[%emt 0:01:41]} 47. Kd1 {[%emt 0:03:09]} g4 {[%emt 0:01:35]} 48. Ke2 {[%emt 0:00:43]} Rf5 {[%emt 0:00:13]} 49. a3 {[%emt 0:01:44]} Kg7 {[%emt 0:05:02]} 50. Bg1 {[%emt 0:00:05]} Kg6 {[%emt 0:01:10]} 51. a4 {[%emt 0:00:32]} g3 {[%emt 0:02:17]} 52. Bb6 {[%emt 0:00:19]} g2 {[%emt 0:01:12]} 53. Nd2 {[%emt 0:00:13]} h3 {[%emt 0:01:23]} 54. Nf3 {[%emt 0:00:21]} Kh5 {[%emt 0:00:25]} 55. Nh2 {[%emt 0:01:07]} Rg5 {[%emt 0:01:54]} 56. Bg1 {[%emt 0:00:46]} Ra5 {[%emt 0:00:23]} 57. Be3 {[%emt 0:00:38]} Re5 {[%emt 0:00:36]} 58. Nf3 {[%emt 0:00:21]} Rxe3+ {[%emt 0:00:27]} 0-1